Cogmind - Beta 16.1 @@@ ROGUE MODE // 2026.02.24 @ 13:33:39 // Winter2019/RPGLIKE Player: badjay Result: Destroyed by W0-DOY(E) with Overtuned Barrage Gun Performance ------------- Evolutions (0) 0 Regions Visited (4) 800 Robots Destroyed (18) 90 Value Destroyed (474) 474 Prototype IDs (10) 200 Alien Tech Used (0) 0 Bonus (300) 300 TOTAL SCORE: 1864 Bonus ------- Registered with UFD 300 Cogmind --------- Core Integrity 0/600 Matter 290/300 Energy 124/125 System Corruption 1% Temperature Cool (19) Movement Flying (34) Location -8/Scraptown Parts ------- > --- POWER (1) -------- Light Ion Engine > --- PROPULSION (3) --- Flight Unit Flight Unit Flight Unit > --- UTILITY (2) ------ Structural Scanner Melee Analysis Suite > --- WEAPON (2) ------- Mining Claw Chainsword > --- INVENTORY (0) ---- (None) Peak State ------------ > --- POWER ------------ Light Ion Engine > --- PROPULSION ------- Flight Unit Flight Unit Flight Unit > --- UTILITY ---------- Structural Scanner Melee Analysis Suite > --- WEAPON ----------- Mining Claw Chainsword > --- INVENTORY -------- (None) [Rating: 13] Favorites ----------- Power Light Ion Engine Engine Light Ion Engine Propulsion Flight Unit Flight Unit Flight Unit Utility Structural Scanner Device Structural Scanner Processor Melee Analysis Suite Weapon Mining Claw Slashing Weapon Mining Claw Build | -11 -10 -10 -8 -8 ------- Run | Yrd Mat Sub Rec Scr Slots Evolved 4 | . 2 . 1 1 Power . | . . . . . Propulsion 2 | . 2 . . . Utility 1 | . . . 1 . Weapon 1 | . . . . 1 Parts Attached 10 | . 8 . 1 1 Power 1 | . 1 . . . Engine 1 | . 1 . . . Core . | . . . . . Reactor . | . . . . . Propulsion 5 | . 5 . . . Treads . | . . . . . Leg . | . . . . . Wheel . | . . . . . Hover . | . . . . . Flight 5 | . 5 . . . Utility 2 | . 1 . 1 . Device 1 | . 1 . . . Storage . | . . . . . Processor 1 | . . . 1 . Hackware . | . . . . . Protection . | . . . . . Artifact . | . . . . . Weapon 2 | . 1 . . 1 Energy Gun . | . . . . . Energy Cannon . | . . . . . Ballistic Gun . | . . . . . Ballistic Cannon . | . . . . . Launcher . | . . . . . Special Weapon . | . . . . . Impact Weapon . | . . . . . Slashing Weapon 2 | . 1 . . 1 Piercing Weapon . | . . . . . Special Melee Weapon . | . . . . . Unidentified Prototypes . | . . . . . Parts Lost 2 | . 2 . . . Power . | . . . . . Propulsion 2 | . 2 . . . Utility . | . . . . . Weapon . | . . . . . Highest Loss Streak 1 | . 1 . . . To Critical Strikes . | . . . . . Average Backups . | . . . . . Power . | . . . . . Propulsion . | . . . . . Utility . | . . . . . Weapon . | . . . . . Tool/Special . | . . . . . Unused Backups . | . . . . . Power . | . . . . . Propulsion . | . . . . . Utility . | . . . . . Weapon . | . . . . . Tool/Special . | . . . . . Average Slot Usage (%) 86 | . 65 100 100 100 Engine 8 | . . 16 14 13 Flight 32 | . 18 50 43 39 Device 18 | . 24 16 14 13 Processor 6 | . . . 11 13 Slashing Weapon 18 | . 22 16 14 19 Peak Build Rating 13 | . 6 6 9 13 Average Rating 6 | . 2 6 8 11 On Entrance 4 | . . 6 6 9 Avg Prop Armor Cover (%) . | . . . . . Naked Turns 14 | . 14 . . . Heaviest Build 9 | . 6 6 6 9 Greatest Support 12 | 3 12 12 12 12 Greatest Overweight (x) . | . . . . . Average Overweight (x) . | . . . . . Largest Inventory Capacity . | . . . . . Average Capacity . | . . . . . Most Carried . | . . . . . Average Carried . | . . . . . Final Capacity . | . . . . . Final Carried . | . . . . . Class Distribution -------------------- 86% | Hacker-Mutant 10% | Hacker-Gladiator 3% | Mutant Dominant Class ---------------- Hacker-Mutant | -10/Materials Hacker-Mutant | -10/Subcaves Hacker-Mutant | -8/Recycling Hacker-Gladiator | -8/Scraptown Resources | -11 -10 -10 -8 -8 ----------- Run | Yrd Mat Sub Rec Scr Matter Collected 300 | 200 60 30 10 . Remotely . | . . . . . Salvage Created 591 | . 411 21 159 . Parts 32 | . 25 1 6 . Haulers Intercepted . | . . . . . Recyclers Shooed . | . . . . . Parts Field Recycled . | . . . . . Retrieved Matter . | . . . . . Parts Self-Destructed 8 | . . 8 . . Prevented . | . . . . . Parts Restored . | . . . . . Kills | -11 -10 -10 -8 -8 ------- Run | Yrd Mat Sub Rec Scr Combat Hostiles Destroyed 17 | . 14 1 2 . Melee 17 | . 14 1 2 . Classes Destroyed 4 | . 3 . 1 . Watcher 1 | . 1 . . . Swarmer 7 | . 6 1 . . Grunt 8 | . 8 . . . Sentry 2 | . . . 2 . Best Kill Streak 3 | . 3 1 2 . Combat Bots Only 3 | . 3 1 2 . Max Kills in Single Turn 1 | . 1 1 1 . Gunslinging . | . . . . . Exploded . | . . . . . Melee 1 | . 1 1 1 . Uniques/NPCs Destroyed . | . . . . . Combat | -11 -10 -10 -8 -8 -------- Run | Yrd Mat Sub Rec Scr Hostile Shots Fired 179 | . 123 12 12 32 Missed 72 | . 47 4 6 15 Hits 107 | . 76 8 6 17 Melee 2 | . . . . 2 Projectile 105 | . 76 8 6 15 Critical Strikes 1 | . . . . 1 Damage Taken 1203 | . 759 60 92 292 Core 1100 | . 705 49 82 264 Absorbed by Shields . | . . . . . Redirected to Core 323 | . 155 33 35 100 Core Remaining (%) 100 | 100 . . . . Volleys Fired . | . . . . . Largest . | . . . . . Hottest . | . . . . . Shots Fired . | . . . . . Gun . | . . . . . Cannon . | . . . . . Launcher . | . . . . . Special . | . . . . . Kinetic . | . . . . . Thermal . | . . . . . Explosive . | . . . . . Electromagnetic . | . . . . . Robot Hit Streak . | . . . . . Robot Miss Streak . | . . . . . Penetration Max . | . . . . . Secondary Targets . | . . . . . Shots Hit Robots 38 | . 32 1 5 . Core Hits 19 | . 17 . 2 . Critical Kills . | . . . . . Critical Parts Destroyed . | . . . . . Critical Strikes . | . . . . . Melee Attacks 70 | . 56 5 7 2 Impact . | . . . . . Slashing 70 | . 56 5 7 2 Piercing . | . . . . . Sneak Attacks 2 | . . . 2 . Combat Hostiles . | . . . . . Follow-up Attacks . | . . . . . Damage Inflicted 1027 | . 803 22 202 . Guns . | . . . . . Cannons . | . . . . . Explosions . | . . . . . Melee 1027 | . 803 22 202 . Ramming . | . . . . . Kinetic . | . . . . . Thermal . | . . . . . Explosive . | . . . . . Electromagnetic . | . . . . . Impact . | . . . . . Slashing 1027 | . 803 22 202 . Piercing . | . . . . . Highest Corruption 1 | . . . . 1 Average Corruption 1 | . . . . 1 Corruption Purged . | . . . . . Corruption Blocked . | . . . . . Overload Shots . | . . . . . Overflow Damage 36 | . 27 9 . . Projectiles . | . . . . . Explosions . | . . . . . Melee 36 | . 27 9 . . Knockbacks . | . . . . . Impact . | . . . . . Kinetic . | . . . . . Secondary . | . . . . . Self-Inflicted Damage . | . . . . . Shots . | . . . . . Rammed . | . . . . . Targets Rammed . | . . . . . Kicked . | . . . . . Crushed . | . . . . . Highest Temperature 29 | . . 2 . 29 Average Temperature 15 | . . 2 . 18 Received Heat Transfer 343 | . 237 48 9 49 Siege Activations . | . . . . . Martial Activations . | . . . . . Shielding Activations . | . . . . . Robots Disrupted . | . . . . . Combat Hostiles . | . . . . . Robots Corrupted . | . . . . . Combat Hostiles . | . . . . . Parts Fried . | . . . . . Impact Corruptions . | . . . . . Robots Melted . | . . . . . Combat Hostiles . | . . . . . Parts Melted . | . . . . . Heat Transferred . | . . . . . Parts Sabotaged . | . . . . . Parts Stolen . | . . . . . Parts Stripped . | . . . . . Power Chain Reactions . | . . . . . Alert | -11 -10 -10 -8 -8 ------- Run | Yrd Mat Sub Rec Scr Maximum Alert Level 1 | . 1 . . . Low Security (%) 96 | 100 94 . 100 . Level 1 3 | . 5 . . . Level 2 . | . . . . . Level 3 . | . . . . . Level 4 . | . . . . . Level 5 . | . . . . . High Security . | . . . . . Max Security . | . . . . . Peak Influence 208 | . 208 . 63 . Initial 54 | . . . 54 . Average 64 | . 100 . 19 . Influence Increases 598 | . 465 50 83 . Destroy 0b10 Robot/C 340 | . 280 20 40 . Destroy 0b10 Robot/NC 5 | . 5 . . . Destroy Leader 62 | . 62 . . . Successful Hack 36 | . 25 . 11 . Destroy Structure 5 | . 3 . 2 . Partial Spotted 45 | . 30 . 15 . Lose Combat Pursuer 105 | . 60 30 15 . Influence Decreases 598 | . 265 136 197 . Entered New Map 156 | . . 96 60 . Time Decay 422 | . 245 40 137 . Lost Part 20 | . 20 . . . Squads Dispatched 2 | . 2 . . . Investigation 1 | . 1 . . . Extermination . | . . . . . Reinforcement 1 | . 1 . . . Assault . | . . . . . Garrison . | . . . . . Intercept . | . . . . . Searches Triggered . | . . . . . Construction Impeded . | . . . . . Haulers Reinforced . | . . . . . Active Scanning Responses . | . . . . . Cargo Convoy Interrupts . | . . . . . Stealth | -11 -10 -10 -8 -8 --------- Run | Yrd Mat Sub Rec Scr Distress Signals 3 | . 3 . . . Communications Jammed . | . . . . . Distress Signals . | . . . . . Times Spotted 47 | . 23 5 3 16 Peak Tracking Total 19 | . 7 3 2 19 Tactical Retreats 4 | . 2 1 1 . Traps | -11 -10 -10 -8 -8 ------- Run | Yrd Mat Sub Rec Scr Traps Triggered 1 | . 1 . . . Indirectly . | . . . . . Trap Hack Attempts . | . . . . . Triggered . | . . . . . Disarmed . | . . . . . Reprogrammed . | . . . . . Reused . | . . . . . Traps Extracted . | . . . . . Installed . | . . . . . Triggered . | . . . . . Machines | -11 -10 -10 -8 -8 ---------- Run | Yrd Mat Sub Rec Scr Machines Disabled . | . . . . . Max in Single Turn . | . . . . . Machines Repaired . | . . . . . Machines Dismantled . | . . . . . Machines Sabotaged . | . . . . . Overloaded Fab Kills . | . . . . . Hacking | -11 -10 -10 -8 -8 --------- Run | Yrd Mat Sub Rec Scr Machines Accessed 17 | . 8 . 6 3 Terminals 13 | . 7 . 6 . Fabricators . | . . . . . Repair Stations . | . . . . . Recycling Units 1 | . 1 . . . Scanalyzers . | . . . . . Garrison Access . | . . . . . Total Hacks 113 | . 49 . 41 23 Successful 83 | . 34 . 26 23 Failed 29 | . 15 . 14 . Catastrophic 2 | . 1 . 1 . Database Lockouts 1 | . . . 1 . Manual 62 | . 37 . 25 . Terminals 86 | . 45 . 41 . Fabricators . | . . . . . Repair Stations . | . . . . . Recycling Units 4 | . 4 . . . Scanalyzers . | . . . . . Garrison Access . | . . . . . Terminal Hacks 53 | . 15 . 15 23 Record 23 | . . . . 23 Part Schematic 5 | . 2 . 3 . Robot Analysis 2 | . . . 2 . Prototype ID Bank 8 | . 5 . 3 . Branch Access Points 2 | . 1 . 1 . Emergency Access Points 1 | . 1 . . . Terminal Index 2 | . 1 . 1 . Alert Level 2 | . 2 . . . Locate Traps 1 | . 1 . . . Security Status 1 | . . . 1 . Hauler Manifests 3 | . 1 . 2 . Zone Layout 3 | . 1 . 2 . Fabricator Hacks . | . . . . . Repair Station Hacks . | . . . . . Recycling Unit Hacks 2 | . 2 . . . Report Inventory 1 | . 1 . . . Retrieve Components 1 | . 1 . . . Scanalyzer . | . . . . . Garrison Access Hacks . | . . . . . Unauthorized Hacks 28 | . 17 . 11 . Terminals 28 | . 17 . 11 . Track 5 | . 3 . 2 . Botnet 6 | . 3 . 3 . Disrupt 3 | . 3 . . . Operators 2 | . 1 . 1 . Skim 11 | . 6 . 5 . Search 1 | . 1 . . . Fabricators . | . . . . . Repair Stations . | . . . . . Recycling Units . | . . . . . Scanalyzers . | . . . . . Garrison Access . | . . . . . Data Cores Recovered . | . . . . . Used . | . . . . . Hacking Detections 12 | . 6 . 6 . Full Trace Events 1 | . 1 . . . Feedback Events . | . . . . . Feedback Blocked . | . . . . . Robot Schematics Acquired . | . . . . . Robots Built . | . . . . . Authchips . | . . . . . Time . | . . . . . Total Robot Build Rating . | . . . . . Part Schematics Acquired 5 | . 2 . 3 . Parts Built . | . . . . . Authchips . | . . . . . Time . | . . . . . Total Part Build Rating . | . . . . . Part Studies Acquired . | . . . . . Parts Repaired . | . . . . . Time . | . . . . . Parts Recycled . | . . . . . Recycled Matter . | . . . . . Retrieved Matter . | . . . . . Retrieved Components 10 | . 10 . . . Parts Scanalyzed . | . . . . . Part Schematics Acquired . | . . . . . Parts Damaged . | . . . . . Bothacking | -11 -10 -10 -8 -8 ------------ Run | Yrd Mat Sub Rec Scr Used RIF Installer . | . . . . . Robots Hacked . | . . . . . Non-combat . | . . . . . Combat . | . . . . . Robot Hacks Applied . | . . . . . Relay Couplers Released . | . . . . . Fabnet Peak Effective % . | . . . . . Robots Rewired . | . . . . . Allies Hacked . | . . . . . Hacks Repelled . | . . . . . Allies | -11 -10 -10 -8 -8 -------- Run | Yrd Mat Sub Rec Scr Total Allies . | . . . . . Largest Group . | . . . . . Highest-Rated Group . | . . . . . Highest-Rated Ally . | . . . . . Total Orders . | . . . . . Ally Attacks . | . . . . . Total Damage . | . . . . . Kills . | . . . . . Allies Corrupted . | . . . . . Allies Melted . | . . . . . Intel | -11 -10 -10 -8 -8 ------- Run | Yrd Mat Sub Rec Scr Active Infowar (turns) 1451 | . 583 80 470 318 Structural 1451 | . 583 80 470 318 Robot Analysis Total 2 | . . . 2 . Derelict Logs Recovered . | . . . . . Drone Launches . | . . . . . Drone Recoveries . | . . . . . Exploration | -11 -10 -10 -8 -8 ------------- Run | Yrd Mat Sub Rec Scr Turns Passed 1478 | 13 597 80 470 318 Spaces Moved 2437 | 24 821 155 515 922 Core 237 | 24 213 . . . Treads . | . . . . . Legs . | . . . . . Wheels . | . . . . . Hover . | . . . . . Flight 2200 | . 608 155 515 922 Fastest Speed 34 | 50 34 34 34 34 Average Speed 37 | 50 42 34 34 34 Slowest Speed 50 | 50 50 34 34 34 Overloaded Moves . | . . . . . Propulsion Burnouts . | . . . . . Robots Hopped 6 | . . . 1 5 Potential Cave-ins . | . . . . . Cave-ins Triggered . | . . . . . Exploration Rate (%) 55 | 4 98 6 99 72 Regions Visited 4 Branch Regions 3 Pre-discovered Areas 5 | . 1 . 1 3 Known Exits Taken 1 | . . . 1 . Unknown Exits Taken 3 | 1 1 1 . . Scrap Searched 5 | . . . . 5 Spaces Dug 6 | . 3 . 2 1 Terrain Destroyed 6 | . 3 . 2 1 Melee 6 | . 3 . 2 1 Projectile . | . . . . . AOE . | . . . . . Terrain Rammed . | . . . . . Walls Destroyed . | . . . . . Machines Disabled . | . . . . . Actions | -11 -10 -10 -8 -8 --------- Run | Yrd Mat Sub Rec Scr Total 2859 | 24 952 171 793 919 Wait 328 | 1 43 12 272 . Move 2422 | 23 820 154 512 913 Hop 5 | . . . 1 4 Pick Up . | . . . . . Fast Attach 11 | . 9 . 1 1 Attach . | . . . . . Detach . | . . . . . Swap . | . . . . . Drop . | . . . . . Fire . | . . . . . Melee 69 | . 56 5 7 1 Ram . | . . . . . Kick . | . . . . . Crush . | . . . . . Escape Stasis . | . . . . . Rewire . | . . . . . Trap . | . . . . . Miscellaneous 24 | . 24 . . . Route ------- -11/Scrapyard -10/Materials (discovered 5 exits: [*Mat x3] / *Min / [*Sub]) -10/Subcaves (discovered 3 exits: Mat x2 / *Rec) -8/Recycling (discovered 2 exits: *Fac / *Scr) -8/Scraptown (discovered 2 exits: *Fac x2) History --------- Turn | Location | Event 8 | -11/Scrapyard | Discovered new exit (range 14) 14 | -11/Scrapyard | Entered Materials 86 | -10/Materials | Discovered new exit (range 4) 106 | -10/Materials | Identified exit to Mines 214 | -10/Materials | Discovered new exit (range 6) 282 | -10/Materials | Discovered new exit (range 15) 343 | -10/Materials | Loaded intel: 2 recycling unit locations 364 | -10/Materials | Build established: Hacker-Mutant 398 | -10/Materials | Learned location of 1 exit from Recycling 411 | -10/Materials | Discovered new exit (range 7) 443 | -10/Materials | Learned location of Mines (-9) 478 | -10/Materials | Learned location of 2 exits from Materials 501 | -10/Materials | Learned location of 2 exits from Subcaves 501 | -10/Materials | Core integrity fell below 50% 516 | -10/Materials | Learned Recycling recycling unit intel 542 | -10/Materials | Learned 4 Recycling zone layouts 556 | -10/Materials | Reached level 2 580 | -10/Materials | Learned location of 2 exits from Mines 600 | -10/Materials | Upgraded with Propulsion slot (x2) 611 | -10/Materials | Entered Subcaves 612 | -10/Subcaves | Approached by a straggling Scientist 612 | -10/Subcaves | Identified exit to Materials 686 | -10/Subcaves | Discovered new exit (range 14) 691 | -10/Subcaves | Entered Recycling 692 | -8/Recycling | Identified exit to Scraptown 693 | -8/Recycling | Identified exit to Factory 693 | -8/Recycling | Reached level 3 694 | -8/Recycling | Loaded intel: 3 recycling unit locations 777 | -8/Recycling | Upgraded with Utility slot (x1) 932 | -8/Recycling | Learned Factory trap positions 980 | -8/Recycling | Learned Storage security intel 1064 | -8/Recycling | Learned Factory repair station intel 1077 | -8/Recycling | Scanned before Scraplab entrance 1120 | -8/Recycling | Learned Factory trap positions 1157 | -8/Recycling | Entered Scraplab 1161 | -8/Recycling | Entered Scraptown 1163 | -8/Scraptown | Reached level 4 1175 | -8/Scraptown | Heard Great Nut preacher, LISTEN AND RECITE! 1223 | -8/Scraptown | Discovered exit to Factory (range 5) 1265 | -8/Scraptown | Visited Symbiants 1310 | -8/Scraptown | Upgraded with Weapon slot (x1) 1336 | -8/Scraptown | Visited IN-MT5's Study 1347 | -8/Scraptown | Visited Shadow of the Wyrm 1358 | -8/Scraptown | Visited The Evicted 1366 | -8/Scraptown | Visited Cyclists 1375 | -8/Scraptown | Visited UFD Registry 1380 | -8/Scraptown | Registered with UFD as "Steamranger" 1390 | -8/Scraptown | Visited Curators Association 1397 | -8/Scraptown | Visited Research Penetration Think Tank 1405 | -8/Scraptown | Visited Abandonware Association 1410 | -8/Scraptown | Learned abandonware demo "OVRCLOCK.EXE" 1410 | -8/Scraptown | Learned abandonware demo "ERRANTS.EXE" 1410 | -8/Scraptown | Learned abandonware demo "TRNCOAT.EXE" 1424 | -8/Scraptown | Discovered exit to Factory (range 5) 1451 | -8/Scraptown | Visited Cartography Club 1465 | -8/Scraptown | Attacked by Scraptown defenders 1468 | -8/Scraptown | Learned location of Recycling (-8) 1468 | -8/Scraptown | Learned location of Lower Caves (-7) 1468 | -8/Scraptown | Learned location of Proximity Caves (-4) 1468 | -8/Scraptown | Learned 12 Factory zone layouts 1468 | -8/Scraptown | Learned 8 Research zone layouts 1468 | -8/Scraptown | Learned 8 Lower Caves zone layouts 1468 | -8/Scraptown | Learned 16 Lower Caves zone layouts 1468 | -8/Scraptown | Learned 8 Upper Caves zone layouts 1468 | -8/Scraptown | Learned 12 Proximity Caves zone layouts 1468 | -8/Scraptown | Learned Materials emergency access door positions 1468 | -8/Scraptown | Learned location of 2 exits from Research 1468 | -8/Scraptown | Learned location of 1 exit from Upper Caves 1473 | -8/Scraptown | Core integrity fell below 20% 1479 | -8/Scraptown | Destroyed by W0-DOY(E) with Overtuned Barrage Gun Last Messages --------------- Data stored: Research exits (x2). >>Record "EXITS/UPP=1" Upper Caves exit. Data stored: Upper Caves exits (x1). >>Record "ACCESS/FAC=2" Factory entrances. Data stored: Factory entrances (x2). >>Record "ACCESS/RES=3" Research entrances. Data stored: Research entrances (x3). >>Record "ACCESS/LOW=3" Lower Caves entrances. Data stored: Lower Caves entrances (x3). 01471_ HV Slug penetrates Machine. 01471_ Penetrated by Bolt. 01472_ Machine disabled. 01472_ Penetrated by Bolt. 01475_ AS-23Y(j): "It's scrappin' time!" 01476_ Critical hit (Burn: +50). 01478_ Slug penetrates A4-CDR(E). Map ----- +----------------------------------------------------+ | | | | | | | | | | | | | | | | | ?????????????????????????????????????????????????? | | ?????????????????????????????????????????????????? | | ?????????????????????????????????????????????????? | | ?????????????????????????????????????????????????? | | ?????????????????????????????????????????????????? | | ?????????????????????????????????????????????????? | | ?????????????????????????????????????????????????? | | ?????????????????????????????????????????????????? | | ?????????????????????????????????????????????????? | | ?????????????????????????????????????????????????? | | ?????????????????????????????#####???????????????? | | ?????????????????????????????#####???????????????? | | #################?######?????"""##???????????????? | | #########################????" "##???????????????? | | ##"""##""|##"""##### ####### < ###??????????????? | | ##""!##""|##!!"#### ###### ###??????????????? | | E ##??????????????? | | E @ ##??????????????? | | ################### j ############??????????????? | | #################### #############??????????????? | | ?????????????????### ## ????????????????????????? | | ????????############ #####??????????????????????? | | ????????############ # ###??????????????????????? | | ##########"""""""""# # # # ????????????????????? | | ########## " " " # # # ## ##??????????????????? | | """"""""## # # ### ??????????????????? | | "" """""## "# #" # # ####X# ??????????????????? | | " ""## "#X#" # #### "###??????????????????? | | " ""## "###" # # # # ##????????????? | | ""## """"" # ###### ########????????????? | | " ""## # # ##????????????? | | "## # # ##????????????? | | ## ########### ##### ## ############????????????? | | ## ########### ##### ## ############????????????? | | "" """"""""""" """"" "" "##?????????????????????? | | "##?????????????????????? | | "##?????????????????????? | | ##?????????????????????? | | "##?????????????????????? | | ???????????????? | | """""""""""""""""""" "## " " "?????????????? | | """""""""""""""""""" "## """???????????????? | +----------------------------------------------------+ Best States ------------- Heat Dissipation 25 Energy Generation 10 Energy Capacity 125 Matter Stores 300 Matter Capacity 300 Sight Range 16 Terrain Scan Density 10 Evasion (%) 63 Melee Accuracy 5 Offensive Hacking 10 Defensive Hacking 15 Item Schematics ----------------- Hammer | -10/Materials | Hacked Flight Unit | -10/Materials | Hacked Imp. Melee Analysis Suite | -8/Recycling | Hacked Hvy. Mace | -8/Recycling | Hacked Cesium-ion Thruster | -8/Recycling | Hacked Robot Schematics ------------------ None Fabricated ------------ Nothing Repaired ---------- Nothing Studied --------- None Alien Tech Used ----------------- None Achievements -------------- None Challenges ------------ None RPGLIKE | -11 -10 -10 -8 -8 --------- Run | Yrd Mat Sub Rec Scr Levels Raised 3 | . 1 . 1 1 XP Earned 7650 | 3000 1700 1100 1200 650 XP Spent 5300 | . 4300 . 500 500 Upgrades 12 | . 10 . 1 1 Propulsion Slot 2 | . 2 . . . Utility Slot 1 | . . . 1 . Weapon Slot 1 | . . . . 1 Melee Accuracy 3 | . 3 . . . Hack Attack % 2 | . 2 . . . Hack Defense % 3 | . 3 . . . Protomatter Created 162 | . 162 . . . Integrity Restored 486 | . 486 . . . Core 486 | . 486 . . . Protomatter Decayed 16 | . . 16 . . Game ------ Seed ArcChromaticTelecube Manual? 0 Play Time 00:33:14 Cumulative 206.4 hours Start 2026.02.24 @ 12:32:04 End 2026.02.24 @ 13:33:39 Sessions 1 Manual Loads 0 Difficulty Rogue Special Mode Winter2019/RPGLIKE Game No. 207 Rogue 207 Adventurer 0 Explorer 0 Win Type - Total 14 Types 11/0/1/1/0/0/1/0/0/0 Lore% 67 Gallery% 57 Achievement% 51 Wizard Run 0 Options --------- Layout 2 ASCII 0 Keyboard 0 Movement Numpad Keybinds 0 Fullscreen 1 Font 24/Smallcaps Map View 50x44 Zoom Use 0% Tactical HUD 1 Map Filters NONE Filters NONE Steam 1 RUN: d52e53a6-bfbd-4da2-98e7-a2382a45c8aa